[Event "4th Nikity Blitz 2024"]
[Site "Niteroi"]
[Date "2024.08.31"]
[Round "1.2"]
[White "Quintiliano, Renato R."]
[Black "Dias, Bruno Leonardo Do N."]
[Result "1-0"]
[ECO "A54"]
[WhiteElo "2499"]
[BlackElo "2095"]
[Annotator "TA"]
[PlyCount "38"]
[EventDate "2024.08.28"]
[EventType "swiss"]
[EventCountry "BRA"]
[SourceTitle "playchess.com"]
[Source "ChessBase"]
[SourceQuality "1"]
[TimeControl "180+2"]

{[%evp 14,38,33,20,93,98,55,64,38,41,140,127,184,185,222,206,281,264,404,414,409,423,430,420,433,430,562]} 1. Nf3 {[%emt 0:00:11]} Nf6 {[%emt 0:00:08]} 2. c4 {[%emt 0:00:01]} d6 {[%emt 0:00:02]} 3. d4 {[%emt 0:00:02]} Nbd7 {[%emt 0:00:01]} 4. Nc3 {[%emt 0:00:02]} e5 {[%emt 0:00:01]} 5. Bg5 {[%emt 0:00:02]} Be7 {[%emt 0:00:01]} 6. e3 {[%emt 0:00:01]} O-O {[%emt 0:00:03]} 7. Qc2 {[%emt 0:00:00]} c6 {[%emt 0:00:01]} 8. Bd3 {[%emt 0:00:05]} Qc7 {[%emt 0:00:02] [#]} (8... h6 $11 {remains equal.} 9. Bh4 Nh5 10. Bxe7 Qxe7) 9. Bxh7+ $1 {[%emt 0:00:04]} Nxh7 {[%emt 0:00:21]} 10. Bxe7 {[%emt 0:00:01]} Re8 {[%emt 0:00:12] White is slightly better.} 11. Bh4 {[%emt 0:00:02]} exd4 {[%emt 0:00:24]} (11... g5 $1 $14) 12. Nxd4 $16 {[%emt 0:00:02]} Ne5 {[%emt 0:00:54]} (12... Nb6 $16) 13. b3 $18 {[%emt 0:00:08]} a5 {[%emt 0:00:16]} 14. O-O {[%emt 0:00:03]} g6 {[%emt 0:00:24]} 15. Rad1 {[%emt 0:00:04]} d5 {[%emt 0:00:19]} (15... f5 {is a better defense.} 16. f4 Ng4) 16. cxd5 {[%emt 0:00:03]} cxd5 {[%emt 0:00:01]} 17. Nxd5 {[%emt 0:00:09]} Qxc2 {[%emt 0:00:01]} 18. Nxc2 {[%emt 0:00:01]} Bf5 {[%emt 0:00:18]} 19. Nd4 {[%emt 0:00:03]} Rac8 {[%emt 0:00:11] Weighted Error Value: White=0.02 (flawless) /Black=0.59.  Mistake:       	---       	Black=3      Inaccurate:     	---       	Black=2      OK:         	White=6     	Black=2      Best:        	White=1     	---} 1-0

[Event "4th Nikity Blitz 2024"]
[Site "Niteroi"]
[Date "2024.08.31"]
[Round "1.3"]
[White "Lopes, Eduardo Moraes"]
[Black "Perdomo, Leandro"]
[Result "0-1"]
[ECO "C55"]
[WhiteElo "1933"]
[BlackElo "2359"]
[Annotator "RC"]
[PlyCount "38"]
[EventDate "2024.08.28"]
[EventType "swiss"]
[EventCountry "BRA"]
[SourceTitle "playchess.com"]
[Source "ChessBase"]
[SourceQuality "1"]
[TimeControl "180+2"]

1. e4 {[%emt 0:00:02]} e5 {[%emt 0:00:00]} 2. Nf3 Nc6 3. Bc4 {[%emt 0:00:02]} Nf6 {[%emt 0:00:01]} 4. d3 {[%emt 0:00:01]} h6 {[%emt 0:00:01]} 5. O-O {[%emt 0:00:02]} d6 {[%emt 0:00:00]} 6. c3 {[%emt 0:00:01]} g5 {[%emt 0:00:01]} 7. Nbd2 {[%emt 0:00:13]} Bg7 {[%emt 0:00:01]} 8. Bb3 {[%emt 0:00:04]} Nh5 {[%emt 0:00:14]} 9. Nc4 {[%emt 0:00:07]} Nf4 {[%emt 0:00:04]} 10. Bxf4 {[%emt 0:00:45]} gxf4 {[%emt 0:00:01]} 11. h3 {[%emt 0:00:23]} Qf6 {[%emt 0:00:28]} 12. d4 {[%emt 0:00:38]} exd4 {[%emt 0:00:06]} 13. e5 {[%emt 0:00:08]} dxe5 {[%emt 0:00:01]} 14. Ncxe5 {[%emt 0:00:06]} Nxe5 {[%emt 0:00:11]} 15. Nxe5 {[%emt 0:00:02]} O-O {[%emt 0:00:03]} 16. cxd4 {[%emt 0:00:04]} c5 {[%emt 0:00:34]} 17. Re1 {[%emt 0:00:39]} cxd4 {[%emt 0:00:06]} 18. Qxd4 {[%emt 0:00:01]} f3 {[%emt 0:00:02]} 19. gxf3 {[%emt 0:00:18]} Bxh3 {[%emt 0:00:05]} 0-1

[Event "4th Nikity Blitz 2024"]
[Site "Niteroi"]
[Date "2024.08.31"]
[Round "1.4"]
[White "Santiago, Yago De Moura"]
[Black "Dos Santos, Thiago L Verbicario"]
[Result "1-0"]
[ECO "E18"]
[WhiteElo "2455"]
[BlackElo "1897"]
[Annotator "RC"]
[PlyCount "41"]
[EventDate "2024.08.28"]
[EventType "swiss"]
[EventCountry "BRA"]
[SourceTitle "playchess.com"]
[Source "ChessBase"]
[SourceQuality "1"]
[TimeControl "180+2"]

1. d4 {[%emt 0:00:02]} Nf6 {[%emt 0:00:02]} 2. c4 {[%emt 0:00:03]} e6 {[%emt 0:00:01]} 3. Nc3 {[%emt 0:00:01]} d5 {[%emt 0:00:02]} 4. Nf3 {[%emt 0:00:02]} Be7 {[%emt 0:00:05]} 5. g3 {[%emt 0:00:02]} O-O {[%emt 0:00:03]} 6. Bg2 {[%emt 0:00:01]} b6 {[%emt 0:00:02]} 7. O-O {[%emt 0:00:03]} Bb7 {[%emt 0:00:02]} 8. cxd5 {[%emt 0:00:06]} exd5 {[%emt 0:00:02]} 9. Bf4 {[%emt 0:00:02]} Nbd7 {[%emt 0:00:02]} 10. Rc1 {[%emt 0:00:02]} c5 {[%emt 0:00:05]} 11. e3 {[%emt 0:00:14]} a6 {[%emt 0:00:08]} 12. Ne5 {[%emt 0:00:03]} cxd4 {[%emt 0:00:12]} 13. exd4 {[%emt 0:00:01]} Rc8 {[%emt 0:00:07]} 14. h4 {[%emt 0:00:03]} Re8 {[%emt 0:00:04]} 15. Re1 {[%emt 0:00:16]} Nf8 {[%emt 0:00:02]} 16. h5 {[%emt 0:00:03]} h6 {[%emt 0:00:06]} 17. Bh3 {[%emt 0:00:06]} Ne6 {[%emt 0:00:06]} 18. Nxf7 {[%emt 0:00:03]} Kxf7 {[%emt 0:00:06]} 19. Bxe6+ {[%emt 0:00:02]} Kf8 {[%emt 0:00:01]} 20. Qd3 {[%emt 0:00:11]} Nxh5 {[%emt 0:00:17]} 21. Qg6 {[%emt 0:00:06]} 1-0

[Event "4th Nikity Blitz 2024"]
[Site "Niteroi"]
[Date "2024.08.31"]
[Round "2.1"]
[White "Garcia, Julio Cesar de Paiva"]
[Black "Mekhitarian, Krikor Sevag"]
[Result "0-1"]
[ECO "B44"]
[WhiteElo "2004"]
[BlackElo "2560"]
[Annotator "TA"]
[PlyCount "57"]
[EventDate "2024.08.28"]
[EventType "swiss"]
[EventCountry "BRA"]
[SourceTitle "playchess.com"]
[Source "ChessBase"]
[SourceQuality "1"]
[TimeControl "180+2"]

{[%evp 28,57,33,31,56,33,44,32,45,55,81,49,54,53,60,40,33,52,41,-129,-117,-127,-127,-119,-119,-114,-129,-212,-143,-209,-198,-312]} 1. e4 {[%emt 0:00:02]} c5 {[%emt 0:00:01]} 2. Nf3 {[%emt 0:00:01]} Nc6 {[%emt 0:00:01]} 3. d4 {[%emt 0:00:01]} cxd4 {[%emt 0:00:00]} 4. Nxd4 {[%emt 0:00:01]} e6 {[%emt 0:00:01]} 5. Nb5 {[%emt 0:00:03]} d6 {[%emt 0:00:02]} 6. c4 {[%emt 0:00:01]} a6 {[%emt 0:00:02]} 7. N5c3 {[%emt 0:00:06]} b6 {[%emt 0:00:03]} 8. Be2 {[%emt 0:00:03]} Bb7 {[%emt 0:00:01]} 9. O-O {[%emt 0:00:02]} Nf6 {[%emt 0:00:01]} 10. Be3 {[%emt 0:00:11]} Ne5 {[%emt 0:00:02]} 11. f3 {[%emt 0:00:05]} Qc7 {[%emt 0:00:04]} 12. Na3 {[%emt 0:00:05]} Be7 {[%emt 0:00:02]} 13. Rc1 {[%emt 0:00:04]} O-O {[%emt 0:00:02]} 14. Qd2 {[%emt 0:00:09]} Rac8 {[%emt 0:00:04]} 15. Rfd1 {[%emt 0:00:02]} Rfe8 {[%emt 0:00:10]} 16. Kh1 {[%emt 0:00:18]} Red8 {[%emt 0:00:12]} 17. Bf1 {[%emt 0:00:06]} h5 {[%emt 0:00:06][%cal Bh7h5,Bh5h4,Bh4h3][%mdl 32] White is slightly better.} 18. Qf2 {[%emt 0:00:04]} Ned7 {[%emt 0:00:07]} 19. Nc2 {[%emt 0:01:11]} Re8 {[%emt 0:00:07]} 20. Nd4 {[%emt 0:00:26]} h4 {[%emt 0:00:03]} 21. b4 {[%emt 0:00:06][%cal Oh1g1]} ({Much weaker is} 21. Qxh4 Nxe4 22. Qh3 Nxc3 23. Rxc3 Bf6 $11) 21... Ne5 {[%emt 0:00:12]} 22. Na4 {[%emt 0:00:17][%cal Od4b3]} ({Don't play} 22. Qxh4 Nxe4 23. Qh3 Nxc3 24. Rxc3 Bf6 $11) 22... h3 {[%emt 0:00:13]} 23. c5 $2 {[%emt 0:00:11]} (23. gxh3 $14 Bd8 24. b5) 23... dxc5 $17 {[%emt 0:00:07]} 24. bxc5 {[%emt 0:00:01] [#] aiming for c6.} bxc5 {[%emt 0:00:27]} (24... hxg2+ 25. Qxg2 bxc5 26. Be2) 25. Nb3 {[%emt 0:00:01][%cal Ra4c5] Repels Qa5} hxg2+ $40 {[%emt 0:00:30][%mdl 128] Black attacks with force.} 26. Bxg2 {[%emt 0:00:01]} c4 {[%emt 0:00:01]} 27. Nbc5 {[%emt 0:00:11]} (27. Nb6 $17 {might work better.}) 27... Rcd8 {[%emt 0:00:04]} 28. Nxb7 {[%emt 0:00:03]} (28. Rf1 $17 {was worth a try.}) 28... Qxb7 $19 {[%emt 0:00:01]} 29. Nc3 {[%emt 0:00:08] Weighted Error Value: White=0.39/Black=0.13 (very precise) .  Mistake:       	White=4     	---        Inaccurate:     	White=1     	Black=2      OK:         	White=3     	Black=3} (29. Qc2 $142) 0-1

[Event "4th Nikity Blitz 2024"]
[Site "Niteroi"]
[Date "2024.08.31"]
[Round "2.2"]
[White "Mantelato, Davi Natali"]
[Black "Quintiliano, Renato R."]
[Result "0-1"]
[ECO "C11"]
[WhiteElo "1768"]
[BlackElo "2499"]
[Annotator "TA"]
[PlyCount "38"]
[EventDate "2024.08.28"]
[EventType "swiss"]
[EventCountry "BRA"]
[SourceTitle "playchess.com"]
[Source "ChessBase"]
[SourceQuality "1"]
[TimeControl "180+2"]

{[%evp 9,38,-31,-11,-78,-33,-56,-44,-102,-103,-139,-139,-168,-158,-159,-163,-192,-164,-168,-156,-257,-260,-634,-602,-1095,-1024,-984,-938,-2081,-2072,-29998,-29999]} 1. e4 {[%emt 0:00:02]} e6 {[%emt 0:00:02]} 2. d4 {[%emt 0:00:02]} d5 {[%emt 0:00:01]} 3. Nc3 {[%emt 0:00:01]} Nf6 {[%emt 0:00:02]} 4. e5 {[%emt 0:00:02]} Nfd7 {[%emt 0:00:01]} 5. Bb5 {[%emt 0:00:03]} a6 {[%emt 0:00:03]} 6. Ba4 {[%emt 0:00:02]} (6. Bxd7+ $1 $11 Bxd7 7. Nf3) 6... c5 {[%emt 0:00:03]} 7. Bxd7+ {[%emt 0:00:10]} Bxd7 {[%emt 0:00:04]} 8. f4 {[%emt 0:00:04]} (8. Nce2 $15) 8... cxd4 $17 {[%emt 0:00:06]} 9. Qxd4 {[%emt 0:00:03]} Nc6 {[%emt 0:00:01]} 10. Qd1 {[%emt 0:00:06]} Bc5 {[%emt 0:00:04] Dodges Be3} 11. Nf3 {[%emt 0:00:04]} O-O {[%emt 0:00:03] Black is more active.} 12. Bd2 {[%emt 0:00:12]} f6 {[%emt 0:00:01] [#] ...fxe5 is the strong threat.} 13. Qe2 {[%emt 0:00:07]} fxe5 {[%emt 0:00:07]} 14. fxe5 {[%emt 0:00:02]} (14. Nxe5 $17 {is a better defense.} Nxe5 15. Qxe5) 14... Be8 $19 {[%emt 0:00:34][%cal Of8f3] Threatens to win with ...Rxf3!} 15. Ng5 {[%emt 0:00:15]} (15. O-O-O) 15... Nd4 {[%emt 0:00:09]} 16. Qd1 {[%emt 0:00:15]} Bg6 {[%emt 0:00:17]} 17. Rc1 {[%emt 0:00:19]} h6 {[%emt 0:00:01]} 18. Nf3 {[%emt 0:00:05]} Nxf3+ {[%emt 0:00:03]} 19. gxf3 {[%emt 0:00:08]} Qh4+ {[%emt 0:00:01] Black took control after the opening.   Weighted Error Value: White=1.65/Black=0.12 (very precise) .  Mistake:       	White=3     	---        Inaccurate:     	White=2     	Black=1      OK:         	White=2     	Black=6      Best:        	---       	Black=1} 0-1

[Event "4th Nikity Blitz 2024"]
[Site "Niteroi"]
[Date "2024.08.31"]
[Round "2.3"]
[White "Perdomo, Leandro"]
[Black "Nejanky, Maisa"]
[Result "1-0"]
[ECO "E59"]
[WhiteElo "2359"]
[BlackElo "1968"]
[Annotator "RC"]
[PlyCount "24"]
[EventDate "2024.08.28"]
[EventType "swiss"]
[EventCountry "BRA"]
[SourceTitle "playchess.com"]
[Source "ChessBase"]
[SourceQuality "1"]
[TimeControl "180+2"]

1. d4 {[%emt 0:00:01]} Nf6 {[%emt 0:00:00]} 2. c4 {[%emt 0:00:01]} e6 {[%emt 0:00:02]} 3. Nc3 {[%emt 0:00:01]} Bb4 {[%emt 0:00:01]} 4. e3 {[%emt 0:00:01]} O-O {[%emt 0:00:01]} 5. Bd3 {[%emt 0:00:02]} d5 {[%emt 0:00:01]} 6. Nf3 {[%emt 0:00:00]} c5 {[%emt 0:00:01]} 7. O-O {[%emt 0:00:01]} Nc6 {[%emt 0:00:02]} 8. a3 {[%emt 0:00:01]} Bxc3 {[%emt 0:00:02]} 9. bxc3 {[%emt 0:00:01]} dxc4 {[%emt 0:00:01]} 10. Bxc4 {[%emt 0:00:01]} Qc7 {[%emt 0:00:02]} 11. h3 {[%emt 0:03:14]} e5 {[%emt 0:00:12]} 12. Bb2 {[%emt 0:00:00]} Na5 {[%emt 0:00:45]} 1-0

[Event "4th Nikity Blitz 2024"]
[Site "Niteroi"]
[Date "2024.08.31"]
[Round "2.4"]
[White "Chaves, Jorge Antonio Torres"]
[Black "Santiago, Yago De Moura"]
[Result "0-1"]
[ECO "A80"]
[WhiteElo "1924"]
[BlackElo "2455"]
[Annotator "RC"]
[PlyCount "50"]
[EventDate "2024.08.28"]
[EventType "swiss"]
[EventCountry "BRA"]
[SourceTitle "playchess.com"]
[Source "ChessBase"]
[SourceQuality "1"]
[TimeControl "180+2"]

1. d4 {[%emt 0:00:03]} e6 {[%emt 0:00:01]} 2. Nf3 {[%emt 0:00:03]} f5 {[%emt 0:00:01]} 3. Bg5 {[%emt 0:00:03]} Nf6 {[%emt 0:00:03]} 4. e3 {[%emt 0:00:02]} Be7 {[%emt 0:00:03]} 5. h3 {[%emt 0:00:02]} Ne4 {[%emt 0:00:01]} 6. Bxe7 {[%emt 0:00:05]} Qxe7 {[%emt 0:00:02]} 7. c3 {[%emt 0:00:03]} O-O {[%emt 0:00:03]} 8. Nbd2 {[%emt 0:00:01]} Nc6 {[%emt 0:00:05]} 9. Bd3 {[%emt 0:00:08]} Nxd2 {[%emt 0:00:04]} 10. Qxd2 {[%emt 0:00:02]} d6 {[%emt 0:00:01]} 11. Bc2 {[%emt 0:00:22]} Bd7 {[%emt 0:00:06]} 12. d5 {[%emt 0:00:22]} exd5 {[%emt 0:00:07]} 13. Qxd5+ {[%emt 0:00:03]} Kh8 {[%emt 0:00:05]} 14. h4 {[%emt 0:00:34]} Ne5 {[%emt 0:00:08]} 15. Nxe5 {[%emt 0:00:09]} dxe5 {[%emt 0:00:03]} 16. Qd2 {[%emt 0:00:17]} Bc6 {[%emt 0:00:12]} 17. f3 {[%emt 0:00:08]} Rad8 {[%emt 0:00:09]} 18. Qf2 {[%emt 0:00:03]} a5 {[%emt 0:00:05]} 19. O-O {[%emt 0:00:07]} Rd6 {[%emt 0:00:07]} 20. Rfd1 {[%emt 0:00:03]} Rh6 {[%emt 0:00:01]} 21. g3 {[%emt 0:00:14]} g5 {[%emt 0:00:02]} 22. hxg5 {[%emt 0:00:08]} Qxg5 {[%emt 0:00:03]} 23. Kg2 {[%emt 0:00:27]} f4 {[%emt 0:01:13]} 24. Rh1 {[%emt 0:00:01]} fxg3 {[%emt 0:00:10]} 25. Qxg3 {[%emt 0:00:12]} Bxf3+ {[%emt 0:00:57]} 0-1

[Event "4th Nikity Blitz 2024"]
[Site "Niteroi"]
[Date "2024.08.31"]
[Round "2.5"]
[White "Do Valle Cardoso, Lucas"]
[Black "Martins de Aguiar, Marina"]
[Result "1-0"]
[ECO "B45"]
[WhiteElo "2365"]
[BlackElo "1929"]
[Annotator "RC"]
[PlyCount "93"]
[EventDate "2024.08.28"]
[EventType "swiss"]
[EventCountry "BRA"]
[SourceTitle "playchess.com"]
[Source "ChessBase"]
[SourceQuality "1"]
[TimeControl "180+2"]

1. e4 {[%emt 0:00:01]} c5 {[%emt 0:00:01]} 2. Nf3 {[%emt 0:00:02]} e6 3. Nc3 {[%emt 0:03:05]} Nc6 {[%emt 0:00:04]} 4. d4 {[%emt 0:00:00]} cxd4 {[%emt 0:00:01]} 5. Nxd4 {[%emt 0:00:00]} Nf6 {[%emt 0:00:01]} 6. Nxc6 {[%emt 0:00:00]} bxc6 {[%emt 0:00:01]} 7. e5 {[%emt 0:00:00]} Nd5 {[%emt 0:00:04]} 8. Ne4 {[%emt 0:00:00]} Qc7 {[%emt 0:00:03]} 9. f4 {[%emt 0:00:00]} Qb6 {[%emt 0:00:01]} 10. c4 {[%emt 0:00:00]} Bb4+ {[%emt 0:00:01]} 11. Ke2 {[%emt 0:00:00]} f5 {[%emt 0:00:04]} 12. Nf2 {[%emt 0:00:00]} Ba6 {[%emt 0:00:51]} 13. Kf3 {[%emt 0:00:00]} Nc7 {[%emt 0:00:19]} 14. Be3 {[%emt 0:00:00]} Bc5 {[%emt 0:00:03]} 15. Bxc5 {[%emt 0:00:00]} Qxc5 {[%emt 0:00:02]} 16. Qd6 {[%emt 0:00:00]} Qb6 {[%emt 0:00:16]} 17. Rd1 {[%emt 0:00:00]} O-O-O {[%emt 0:00:17]} 18. b3 {[%emt 0:00:00]} Ne8 {[%emt 0:00:26]} 19. Qa3 {[%emt 0:00:00]} c5 {[%emt 0:00:23]} 20. Kg3 {[%emt 0:00:00]} Bb7 {[%emt 0:00:06]} 21. Be2 {[%emt 0:00:00]} g5 {[%emt 0:00:17]} 22. fxg5 {[%emt 0:00:00]} f4+ {[%emt 0:00:10]} 23. Kh3 {[%emt 0:00:05]} Rg8 {[%emt 0:00:01]} 24. Nd3 {[%emt 0:00:14]} Rxg5 {[%emt 0:00:02]} 25. Qxc5+ {[%emt 0:00:06]} Qxc5 {[%emt 0:00:18]} 26. Nxc5 Bxg2+ {[%emt 0:00:00]} 27. Kh4 {[%emt 0:00:02]} h6 {[%emt 0:00:00]} 28. Rhg1 {[%emt 0:00:10]} Ng7 {[%emt 0:00:00]} 29. Bg4 {[%emt 0:00:04]} f3 {[%emt 0:00:00]} 30. Ne4 {[%emt 0:00:04]} Rxe5 {[%emt 0:00:02]} 31. Nd6+ {[%emt 0:00:01]} Kc7 {[%emt 0:00:02]} 32. Nf7 {[%emt 0:00:01]} Re4 {[%emt 0:00:04]} 33. Nxd8 {[%emt 0:00:03]} Nf5+ {[%emt 0:00:01]} 34. Kh5 {[%emt 0:00:01]} Kxd8 {[%emt 0:00:02]} 35. Bxf5 {[%emt 0:00:02]} exf5 {[%emt 0:00:01]} 36. Kxh6 {[%emt 0:00:01]} Rg4 {[%emt 0:00:03]} 37. Rd2 {[%emt 0:00:02]} f4 {[%emt 0:00:02]} 38. Kh5 {[%emt 0:00:03]} Rg7 {[%emt 0:00:02]} 39. c5 {[%emt 0:00:03]} Ke7 {[%emt 0:00:01]} 40. Re1+ {[%emt 0:00:03]} Kd8 {[%emt 0:00:06]} 41. c6 {[%emt 0:00:01]} Kc7 {[%emt 0:00:01]} 42. cxd7 {[%emt 0:00:02]} Rxd7 {[%emt 0:00:02]} 43. Rc1+ {[%emt 0:00:02]} Kd8 {[%emt 0:00:01]} 44. Rcc2 {[%emt 0:00:01]} Ke7 {[%emt 0:00:03]} 45. Rxd7+ Kxd7 {[%emt 0:00:07]} 46. Kg5 {[%emt 0:00:03]} Ke6 {[%emt 0:00:00]} 47. Kxf4 {[%emt 0:00:01]} 1-0

[Event "4th Nikity Blitz 2024"]
[Site "Niteroi"]
[Date "2024.08.31"]
[Round "3.1"]
[White "Mekhitarian, Krikor Sevag"]
[Black "Souza, Iago Henrique da Sil"]
[Result "1-0"]
[ECO "D35"]
[WhiteElo "2560"]
[BlackElo "2036"]
[Annotator "TA"]
[PlyCount "129"]
[EventDate "2024.08.28"]
[EventType "swiss"]
[EventCountry "BRA"]
[SourceTitle "playchess.com"]
[Source "ChessBase"]
[SourceQuality "1"]
[TimeControl "180+2"]

{[%evp 26,129,53,44,204,92,229,50,221,220,246,250,251,260,241,168,150,145,136,95,132,143,159,145,159,158,161,2,2,3,12,28,108,105,137,135,135,138,145,154,153,146,146,147,178,179,185,177,185,185,186,186,184,178,240,223,240,240,179,179,334,250,494,384,384,364,497,512,516,506,479,0,460,439,371,376,914,907,966,922,1960,1430,1472,1408,593,970,1477,281,220,8,29965,29973,29977,29978,29977,29979,29979,29980,29985,29986,29986,29987,29987,29988,29988,0]} 1. Nf3 {[%emt 0:00:01]} Nf6 {[%emt 0:00:01]} 2. c4 {[%emt 0:00:01]} e6 {[%emt 0:00:01]} 3. Nc3 {[%emt 0:00:02]} d5 {[%emt 0:00:01]} 4. d4 {[%emt 0:00:02]} Be7 {[%emt 0:00:01]} 5. cxd5 {[%emt 0:00:01]} exd5 {[%emt 0:00:01]} 6. Bf4 {[%emt 0:00:01]} O-O {[%emt 0:00:01]} 7. e3 {[%emt 0:00:01]} c6 {[%emt 0:00:02]} 8. h3 {[%emt 0:00:09]} Bf5 {[%emt 0:00:03]} 9. Nh4 {[%emt 0:00:01]} Be6 {[%emt 0:00:03]} 10. Bd3 {[%emt 0:00:01]} a5 {[%emt 0:00:11]} 11. Nf3 {[%emt 0:00:15]} Bd6 {[%emt 0:00:10]} 12. Ne5 {[%emt 0:00:02]} Qe7 {[%emt 0:00:01]} 13. Bg3 {[%emt 0:00:08]} Na6 {[%emt 0:00:05]} 14. O-O {[%emt 0:00:04]} (14. Bh4 $5) 14... Rae8 $2 {[%emt 0:00:04]} ({Black should play} 14... Nd7 $14) 15. a3 {[%emt 0:00:17]} (15. Bxa6 $18 {Hoping for Bd3.} bxa6 16. Nxc6) 15... Bc8 {[%emt 0:00:13]} (15... Bxe5 $16 {was necessary.} 16. Bxe5 (16. dxe5 Nd7 $16) 16... Ra8) 16. Qc2 $2 {[%emt 0:00:06]} (16. Bxa6 $18 {And now Bd3 would win.} bxa6 17. Nxc6) 16... g6 $2 {[%emt 0:00:11]} (16... Nc5 $1 $14) 17. Bxa6 $18 {[%emt 0:00:04]} bxa6 {[%emt 0:00:02]} 18. Nxc6 {[%emt 0:00:01]} Qc7 {[%emt 0:00:07]} 19. Bxd6 {[%emt 0:00:02]} Qxd6 {[%emt 0:00:00]} 20. Ne5 {[%emt 0:00:03]} Bf5 {[%emt 0:00:07]} 21. Qa4 {[%emt 0:00:06]} Rb8 {[%emt 0:00:05]} 22. b4 {[%emt 0:00:18]} axb4 {[%emt 0:00:03]} 23. axb4 {[%emt 0:00:01]} Rxb4 {[%emt 0:00:10]} 24. Qxa6 {[%emt 0:00:01]} Rb6 {[%emt 0:00:01]} 25. Qa5 {[%emt 0:00:07]} Rc8 {[%emt 0:00:12]} 26. Na4 $2 {[%emt 0:00:16]} (26. g4 $18 Be6 27. Rfe1) 26... Ra6 $11 {[%emt 0:00:12]} 27. Qb5 $1 {[%emt 0:00:30]} Rca8 $1 {[%emt 0:00:14]} 28. Ra2 {[%emt 0:00:13]} Bd7 {[%emt 0:00:14]} (28... Ne4 $1 $11 29. Rfa1 h5) 29. Nxd7 $16 {[%emt 0:00:04]} Qxd7 {[%emt 0:00:01]} 30. Qxd7 {[%emt 0:00:04]} Nxd7 {[%emt 0:00:01]} 31. Rfa1 {[%emt 0:00:01]} Nb6 {[%emt 0:00:22]} 32. Nc3 {[%emt 0:00:01]} (32. Nxb6 $6 Rxa2 33. Rxa2 Rxa2 $14) 32... Rxa2 {[%emt 0:00:02]} 33. Rxa2 {[%emt 0:00:01]} (33. Nxa2 Nc4 $11) 33... Rxa2 {[%emt 0:00:02]} 34. Nxa2 {[%emt 0:00:01]} Kf8 {[%emt 0:00:01]} 35. Nc3 {[%emt 0:00:06]} Ke7 {[%emt 0:00:02]} 36. g4 {[%emt 0:00:01]} f6 {[%emt 0:00:07]} 37. Kg2 {[%emt 0:00:02]} Ke6 {[%emt 0:00:03]} 38. Kg3 {[%emt 0:00:01]} Nc4 {[%emt 0:00:02]} 39. Ne2 {[%emt 0:00:03]} g5 {[%emt 0:00:03]} (39... Kd6 $142 40. Kg2 Nd2) 40. Nc1 {[%emt 0:00:02]} Nd2 {[%emt 0:00:03]} 41. f3 {[%emt 0:00:03]} Nc4 {[%emt 0:00:06]} 42. Kf2 {[%emt 0:00:01]} f5 $2 {[%emt 0:00:03]} (42... Nb6 {might work better.} 43. e4 Nc8) 43. Nd3 {[%emt 0:00:01]} fxg4 $2 {[%emt 0:00:04]} (43... Nd6 44. Nb4 fxg4) 44. hxg4 $18 {[%emt 0:00:03]} ({Less strong is} 44. fxg4 h6 45. Nc5+ Ke7 $16) 44... Nd6 {[%emt 0:00:21]} 45. Nc5+ {[%emt 0:00:03]} Kf6 {[%emt 0:00:02]} 46. Na6 {[%emt 0:00:02]} Nb5 {[%emt 0:00:11]} 47. Nb4 {[%emt 0:00:03]} Ke6 {[%emt 0:00:02]} 48. Nd3 {[%emt 0:00:04]} Nd6 $1 {[%emt 0:00:09]} 49. Ke2 {[%emt 0:00:02]} Ne8 {[%emt 0:00:02]} 50. e4 {[%emt 0:00:11]} dxe4 $2 {[%emt 0:00:04]} (50... Ng7 51. Ke3 dxe4 52. fxe4 h5) 51. fxe4 $18 {[%emt 0:00:01]} Nf6 {[%emt 0:00:02]} 52. Kf3 {[%emt 0:00:02]} h5 {[%emt 0:00:02]} 53. gxh5 {[%emt 0:00:01]} Nxh5 {[%emt 0:00:02]} 54. Nf2 {[%emt 0:00:05]} Nf6 {[%emt 0:00:03]} 55. Ng4 {[%emt 0:00:02]} Nd7 {[%emt 0:00:02]} 56. Ne3 $2 {[%emt 0:00:08]} (56. Ke3 {aiming for d5+.} Nb6 57. Kd3) 56... Nf6 $18 {[%emt 0:00:04]} 57. e5 $2 {[%emt 0:00:09]} (57. Nc4 $18) 57... Nd7 $2 {[%emt 0:00:01][%mdl 8192]} (57... Nh5 $11 58. Ke4 (58. Kg4 Nf4 $16) 58... Ng3+ 59. Kd3 Nh5) 58. Ke4 {[%emt 0:00:02]} Nb6 {[%emt 0:00:09]} 59. d5+ {[%emt 0:00:02]} Kf7 {[%emt 0:00:01]} 60. Kf5 {[%emt 0:00:06]} g4 {[%emt 0:00:03]} 61. Kxg4 {[%emt 0:00:04]} ({Stronger than} 61. Nxg4 Nxd5 62. e6+ Ke7 $11) 61... Nxd5 {[%emt 0:00:01]} 62. Nxd5 {[%emt 0:00:01]} Ke6 {[%emt 0:00:00]} 63. Kf4 $1 {[%emt 0:00:01]} Kxd5 {[%emt 0:00:03]} 64. Kf5 {[%emt 0:00:02]} Kc6 {[%emt 0:00:01]} 65. Ke4 $2 {[%emt 0:00:32]} (65. e6 {mates} Kd6 66. Kf6 Kc7 67. e7 Kd7 68. Kf7 Kd6 69. e8=Q (69. e8=B Ke5 $11) 69... Kc5 70. Qa4) 1-0